Workbook

Sheet Лист
B1: 3. План учебного процесса по специальности 43.02.15 «Поварское и кондитерское дело»
B2: Индекс | C2: Наименование учебных циклов, дисциплин, профессиональных модулей, МДК, практик | E2: Объем образовательной программы (час.) | F2: Самостоятельная работа | G2: Объем образовательной программы в академических часах, в том числе | P2: Распределение часов по курсам и семестрам (час. в семестр)
G3: Учебные занятия | L3: Практика | O3: Промежуточная аттестация
G4: Всего | L4: Учебная | M4: Производственная | P4: 1 курс | R4: 2 курс | T4: 3 курс | V4: 4 курс
D5: экзамен | H5: в т. ч. в форме прак. подготовки | I5: Учебные занятия | J5: Лабораторные и практические занятия | K5: Курсовая работа (проект) | N5: Консультация | P5: 1 семестр 17/0 недель | Q5: 2 семестр 22/0 недель | R5: 3 семестр 11/6 недель | S5: 4 семестр 13/10 недель | T5: 5 семестр 8/8 недель | U5: 6 семестр 14/10 недель | V5: 7 семестр 10/6 недель | W5: 8 семестр 7/6/4/6 недель
B6: 1 | C6: 2 | D6: 3 | E6: 4 | F6: 5 | G6: 6 | I6: 7 | J6: 8 | L6: 9 | M6: 10 | O6: 11 | P6: 12 | Q6: 13 | R6: 14 | S6: 15 | T6: 16 | U6: 17 | V6: 18 | W6: 19
B7: ОУД. 00 | C7: Общеобразовательный учебный цикл | D7: 1;6;6 | E7: 1476 | F7: =SUM(F8:F25) -> 0 | G7: =SUM(G8:G25) -> 1404 | H7: 30 | I7: 900 | J7: =SUM(J8:J25) -> 504 | K7: 0 | L7: 0 | M7: 0 | N7: 36 | O7: 36 | P7: 452 | Q7: 784 | R7: 158 | S7: 82 | T7: 0 | U7: 0 | V7: 0 | W7: 0
B8: ОУД. 01 | C8: Русский язык | D8: Э | E8: 90 | G8: 78 | I8: 42 | J8: 36 | N8: 6 | O8: 6 | P8: 34 | Q8: 56
B9: ОУД. 02 | C9: Литература | D9: -,ДЗ | E9: 108 | G9: 108 | I9: 74 | J9: 34 | R9: 50 | S9: 58
B10: ОУД. 03 | C10: Иностранный язык | D10: -,Э | E10: 144 | G10: 132 | I10: 64 | J10: 68 | N10: 6 | O10: 6 | Q10: 82 | R10: 62
B11: ОУД. 04 | C11: Математика | D11: -,Э | E11: 246 | G11: 234 | H11: 20 | I11: 174 | J11: 60 | N11: 6 | O11: 6 | P11: 68 | Q11: 178
B12: ОУД. 05 | C12: История | D12: -,ДЗ | E12: 134 | G12: 134 | I12: 112 | J12: 22 | P12: 52 | Q12: 82 | AD12: 2 | AE12: 6
B13: ОУД .06 | C13: Физическая культура | D13: -,ДЗ | E13: 76 | G13: 76 | I13: 4 | J13: 72 | P13: 30 | Q13: 46
B14: ОУД .07 | C14: Основы безопасности и защиты Родины | D14: -, ДЗ | E14: 70 | G14: 70 | I14: 20 | J14: 50 | P14: 34 | Q14: 36
B15: ОУД. 08 | C15: География | D15: -,З | E15: 72 | G15: 72 | I15: 46 | J15: 26 | P15: 54 | Q15: 18
B16: ОУД. 09 | C16: Информатика | D16: Э | E16: 84 | G16: 72 | H16: 10 | I16: 50 | J16: 22 | N16: 6 | O16: 6 | P16: 44 | Q16: 40
B17: ОУД. 10 | C17: Физика | D17: ДЗ | E17: 102 | G17: 102 | I17: 82 | J17: 20 | P17: 46 | Q17: 56
B18: ОУД. 11 | C18: Обществознание | D18: ДЗ | E18: 70 | G18: 70 | I18: 58 | J18: 12 | R18: 46 | S18: 24
B19: ОУД. 12 | C19: Химия | D19: -,Э | E19: 146 | G19: 134 | I19: 90 | J19: 44 | N19: 6 | O19: 6 | P19: 34 | Q19: 112
B20: ОУД. 13 | C20: Биология | D20: -,Э | E20: 92 | G20: 80 | I20: 52 | J20: 28 | N20: 6 | O20: 6 | P20: 34 | Q20: 58
B21: ОУД. 14 | C21: Родная литература | D21: -ДЗ | E21: 42 | G21: 42 | I21: 32 | J21: 10 | P21: 22 | Q21: 20
C22: Индивидуальный проект
B26: ОГСЭ.00 | C26: Общий гуманитарный и социально-экономический учебный цикл | D26: 0;3;1 | E26: =SUM(E27:E31) -> 516 | F26: 42 | G26: 462 | I26: 200 | J26: 262 | K26: 0 | L26: 0 | M26: 0 | N26: 6 | O26: 6 | P26: 0 | Q26: 0 | R26: 92 | S26: 48 | T26: 44 | U26: 168 | V26: 120 | W26: 44
B27: ОГСЭ.01 | C27: Основы философии | D27: -, ДЗ | E27: 46 | F27: 6 | G27: 40 | I27: =G27-J27 -> 40 | J27: 0 | U27: 46
B28: ОГСЭ.02 | C28: История | D28: ДЗ | E28: 48 | F28: 6 | G28: 42 | I28: =G28-J28 -> 42 | J28: 0 | R28: 48
B29: ОГСЭ.03 | C29: Иностранный язык в профессиональной деятельности | D29: -,Э | E29: 206 | F29: 10 | G29: 184 | I29: 82 | J29: 102 | N29: 6 | O29: 6 | R29: 22 | S29: 22 | T29: 20 | U29: 40 | V29: 80 | W29: 22
B30: ОГСЭ.04 | C30: Физическая культура | D30: -, ДЗ | E30: 174 | F30: 10 | G30: 164 | I30: 4 | J30: 160 | R30: 22 | S30: 26 | T30: 24 | U30: 40 | V30: 40 | W30: 22
B31: ОГСЭ.05 | C31: Психология общения | D31: -, ДЗ | E31: 42 | F31: 10 | G31: 32 | I31: 32 | J31: 0 | U31: 42
B32: ЕН.00 | C32: Математический и общий естественнонаучный учебный цикл | D32: 1;0;1 | E32: =SUM(E33:E34) -> 208 | F32: =SUM(F33:F34) -> 16 | G32: 180 | I32: 124 | J32: 56 | K32: 0 | L32: 0 | M32: 0 | N32: 6 | O32: 6 | P32: 0 | Q32: 0 | R32: 22 | S32: 52 | T32: 48 | U32: 44 | V32: 0 | W32: 42
B33: ЕН.01. | C33: Химия | D33: -,Э | E33: 166 | F33: 10 | G33: 144 | I33: 94 | J33: 50 | N33: 6 | O33: 6 | R33: 22 | S33: 52 | T33: 48 | U33: 44
B34: ЕН.0.2 | C34: Экологические основы природопольования | D34: -, З | E34: 42 | F34: 6 | G34: 36 | I34: 30 | J34: 6 | W34: 42
B35: ОП.00 | C35: Общепрофессиональный учебный цикл | D35: 1;5;4 | E35: =SUM(E36:E45) -> 810 | F35: 66 | G35: 696 | H35: 38 | I35: 428 | J35: 268 | K35: 0 | L35: 0 | M35: 0 | N35: 24 | O35: 24 | P35: 160 | Q35: 80 | R35: 78 | S35: 88 | T35: 208 | U35: 142 | V35: 26 | W35: 28
B36: ОП.01 | C36: Микробиология, физиология питания,санитария и гигиена. | D36: Э | E36: 70 | F36: 6 | G36: 52 | H36: 8 | I36: 38 | J36: 14 | N36: 6 | O36: 6 | P36: 70
B37: ОП.02 | C37: Организация хранения и контроль запасов и сырья | D37: -, ДЗ | E37: 102 | F37: 6 | G37: 96 | I37: 58 | J37: =G37-I37 -> 38 | P37: 54 | Q37: 48
B38: ОП.03 | C38: Техническое оснащение организаций питания | D38: -, ДЗ | E38: 68 | F38: 4 | G38: 64 | I38: 38 | J38: 26 | P38: 36 | Q38: 32
B39: ОП.04 | C39: Организация обслуживания | D39: Э | E39: 70 | F39: 6 | G39: 52 | I39: 38 | J39: 14 | N39: 6 | O39: 6 | S39: 36 | T39: 34
B40: ОП.05 | C40: Основы экономики, менеджмента, маркетинга | D40: -,Э | E40: 140 | F40: 6 | G40: 122 | I40: 72 | J40: 50 | N40: 6 | O40: 6 | T40: 58 | U40: 28 | V40: 26 | W40: 28
B41: ОП.06 | C41: Правовые основы профессиональной деятельности | D41: -, ДЗ | E41: 58 | F41: 10 | G41: 48 | I41: 28 | J41: 20 | T41: 20 | U41: 38
B42: ОП.07 | C42: Информационные технологии в профессиональной деятельности | D42: Э | E42: 118 | F42: 10 | G42: 96 | H42: 30 | I42: 58 | J42: 38 | N42: 6 | O42: 6 | T42: 42 | U42: 76
B43: ОП.08 | C43: Охрана труда | D43: ДЗ | E43: 34 | F43: 2 | G43: 32 | I43: 20 | J43: 12 | T43: 34
B44: ОП.09 | C44: Безопасность жизнедеятельности | D44: ДЗ | E44: 72 | F44: 10 | G44: 62 | I44: 36 | J44: 26 | R44: 26 | S44: 26 | T44: 20
B45: ОП.10 | C45: Татарский язык в профессиональной деятельности | D45: -, З | E45: 78 | F45: 6 | G45: 72 | I45: 42 | J45: 30 | R45: 52 | S45: 26
B46: П.00 | C46: Профессиональный учебный цикл | D46: 0;20;15 | E46: =E47+E53+E59+E65+E71+E77+E82 -> 2786 | F46: =F47+F53+F59+F65+F71+F77+F82 -> 92 | G46: 1002 | I46: 720 | J46: 250 | K46: 32 | L46: 540 | M46: 900 | N46: 126 | O46: 126 | P46: 0 | Q46: 0 | R46: 262 | S46: 606 | T46: 312 | U46: 534 | V46: 466 | W46: =W47+W53+W59+W65+W71+W77+W82 -> 606
B47: ПМ.00 | C47: Профессиональные модули | D47: 0;20;15 | E47: =E48+E54+E60+E66+E72+E78+E83 -> 2714 | F47: 92 | G47: 1002 | H47: 1422 | I47: 720 | J47: 250 | K47: 32 | L47: 540 | M47: 900 | N47: 90 | O47: 90 | P47: 0 | Q47: 0 | R47: 262 | S47: 594 | T47: 312 | U47: 510 | V47: 466 | W47: 570
B48: ПМ.01 | C48: Организация и ведение процессов приготовления и подготовки к реализации полуфабрикатов для блюд, кулинарных изделий сложного ассортимента | D48: 0;3;2 | E48: =SUM(E49:E53) -> 302 | F48: =SUM(F49:F53) -> 12 | G48: 122 | H48: 158 | I48: 88 | J48: 34 | K48: 0 | L48: 72 | M48: 72 | N48: 12 | O48: 12 | P48: 0 | Q48: 0 | R48: 142 | S48: 160 | T48: 0 | U48: 0 | V48: 0 | W48: 0
B49: МДК.01.01 | C49: Организация процессов приготовления, подготовки к реализации кулинарных полуфабрикатов | D49: ДЗ | E49: 32 | F49: 2 | G49: 30 | H49: 4 | I49: 22 | J49: 8 | R49: 32
B50: МДК.01.02 | C50: Процессы приготовления, подготовки к реализации кулинарных полуфабрикатов | D50: -,Э | E50: 114 | F50: 10 | G50: 92 | H50: 10 | I50: 66 | J50: 26 | N50: 6 | O50: 6 | R50: 74 | S50: 40
B51: УП.01 | C51: Учебная практика | D51: -, ДЗ | E51: 72 | H51: 72 | L51: 72 | R51: 36 | S51: 36
B52: ПП.01 | C52: Производственная практика | D52: -, ДЗ | E52: 72 | H52: 72 | M52: 72 | S52: 72
C53: Экзамен по мудулю | D53: -,Э | E53: 12 | N53: 6 | O53: 6 | S53: 12
B54: ПМ.02 | C54: Организация и ведение процессов приготовления, оформления и подготовки к реализации горячих блюд, кулинарных изделий, закусок сложного ассортимента с учетом потребностей различных категорий потребителей, видов и форм обслуживания | D54: 0;3;2 | E54: =SUM(E55:E59) -> 486 | F54: =SUM(F55:F59) -> 12 | G54: 198 | H54: 284 | I54: 134 | J54: 48 | K54: 16 | L54: 108 | M54: 144 | N54: 12 | O54: 12 | P54: 0 | Q54: 0 | R54: 0 | S54: 118 | T54: 152 | U54: 216 | V54: 0 | W54: 0
B55: МДК.02.01 | C55: Организация процессов приготовления, подготовки к реализации горячих блюд, кулинарных изделий, закусок сложного ассортимента | D55: -, ДЗ | E55: 34 | G55: 34 | H55: 2 | I55: 28 | J55: 6 | S55: 34
B56: МДК.02.02 | C56: Процессы приготовления, подготовки к реализации горячих блюд, кулинарных изделий, закусок сложного ассортимента | D56: -,Э | E56: 188 | F56: 12 | G56: 164 | H56: 30 | I56: 106 | J56: 42 | K56: 16 | N56: 6 | O56: 6 | S56: 84 | T56: 80 | U56: 24
B57: УП.02 | C57: Учебная практика | D57: -, ДЗ | E57: 108 | H57: 108 | L57: 108 | T57: 72 | U57: 36
B58: ПП.02 | C58: Производственная практика | D58: -, ДЗ | E58: 144 | H58: 144 | M58: 144 | U58: 144
C59: Экзамен по мудулю | D59: -,Э | E59: 12 | N59: 6 | O59: 6 | U59: 12
B60: ПМ.03 | C60: Организация и ведение процессов приготовления, оформления и подготовки к реализации холодных блюд, кулинарных изделий, закусок сложного ассортимента с учетом потребностей различных категорий потребителей, видов и форм обслуживания | D60: 0;3;2 | E60: =SUM(E61:E65) -> 316 | F60: =SUM(F61:F65) -> 10 | G60: 102 | H60: 192 | I60: 72 | J60: 30 | K60: 0 | L60: 72 | M60: 108 | N60: 12 | O60: 12 | P60: 0 | Q60: 0 | R60: 0 | S60: 0 | T60: 160 | U60: 156 | V60: 0 | W60: 0
B61: МДК.03.01 | C61: Организация процессов приготовления, подготовки к реализации холодных блюд, кулинарных изделий, закусок сложного ассортимента | D61: ДЗ | E61: 36 | F61: 4 | G61: 32 | H61: 4 | I61: 22 | J61: 10 | T61: 36
B62: МДК.03.02 | C62: Процессы приготовления, подготовки к реализации холодных блюд, кулинарных изделий, закусок сложного ассортимента | D62: Э | E62: 88 | F62: 6 | G62: 70 | H62: 8 | I62: 50 | J62: 20 | N62: 6 | O62: 6 | T62: 88
B63: УП.03 | C63: Учебная практика | D63: -, ДЗ | E63: 72 | H63: 72 | L63: 72 | T63: 36 | U63: 36
B64: ПП.03 | C64: Производственная практика | D64: -, ДЗ | E64: 108 | H64: 108 | M64: 108 | U64: 108
C65: Экзамен по мудулю | D65: -,Э | E65: 12 | N65: 6 | O65: 6 | U65: 12
B66: ПМ.04 | C66: Организация и ведение процессов приготовления, оформления и подготовки к реализации холодных и горячих десертов, напитков сложного ассортимента с учетом потребностей различных категорий потребителей, видов и форм обслуживания | D66: 0;3;2 | E66: =SUM(E67:E71) -> 260 | F66: =SUM(F67:F71) -> 12 | G66: 116 | H66: 124 | I66: 86 | J66: 30 | K66: 0 | L66: 36 | M66: 72 | N66: 12 | O66: 12 | P66: 0 | Q66: 0 | R66: 0 | S66: 0 | T66: 0 | U66: 0 | V66: 110 | W66: 150
B67: МДК.04.01 | C67: Организация процессов приготовления, подготовки к реализации холодных и горячих десертов, напитков сложного ассортимента | D67: ДЗ | E67: 40 | F67: 6 | G67: 34 | H67: 4 | I67: 24 | J67: 10 | V67: 40
B68: МДК.04.02 | C68: Процессы приготовления, полготовки к реализации холодных и горячих десертов, напитков сложного ассортимента | D68: -,Э | E68: 100 | F68: 6 | G68: 82 | H68: 12 | I68: 62 | J68: 20 | N68: 6 | O68: 6 | V68: 70 | W68: 30
B69: УП.04 | C69: Учебная практика | D69: -, ДЗ | E69: 36 | H69: 36 | L69: 36 | W69: 36
B70: ПП.04 | C70: Производственная практика | D70: -, ДЗ | E70: 72 | H70: 72 | M70: 72 | W70: 72
C71: Экзамен по мудулю | D71: -,Э | E71: 12 | N71: 6 | O71: 6 | W71: 12
B72: ПМ.05 | C72: Организация и ведение процессов приготовления, оформления и подготовки к реализации хлебобулочных, мучных кондитерских изделий сложного ассортимента с учетом потребностей различных категорий потребителей, видов и форм обслуживания | D72: 0;3;2 | E72: =SUM(E73:E77) -> 488 | F72: =SUM(F73:F77) -> 16 | G72: 232 | H72: 244 | I72: 190 | J72: 42 | K72: 0 | L72: 108 | M72: 108 | N72: 12 | O72: 12 | P72: 0 | Q72: 0 | R72: 0 | S72: 0 | T72: 0 | U72: 138 | V72: 230 | W72: 120
B73: МДК.05.01 | C73: Организация процессов приготовления, подготовки к реализации хлебобулочных, мучных кондитерских изделий сложного ассортимента | D73: -, ДЗ | E73: 42 | F73: 6 | G73: 36 | H73: 8 | I73: 24 | J73: 12 | U73: 22 | V73: 20
B74: МДК.05.02 | C74: Процессы приготовления, подготовки к реализации хлебобулочных, мучных кондитерских изделий сложного ассортимента | D74: Э | E74: 218 | F74: 10 | G74: 196 | H74: 20 | I74: 166 | J74: 30 | N74: 6 | O74: 6 | U74: 116 | V74: 102
B75: УП.05 | C75: Учебная практика | D75: ДЗ | E75: 108 | H75: 108 | L75: 108 | V75: 108
B76: ПП.05 | C76: Производственная практика | D76: -, ДЗ | E76: 108 | H76: 108 | M76: 108 | W76: 108
C77: Экзамен по мудулю | D77: -,Э | E77: 12 | N77: 6 | O77: 6 | W77: 12
B78: ПМ.06 | C78: Организация и контроль текущей деятельности подчиненного персонала | D78: 0;2;2 | E78: =SUM(E79:E82) -> 282 | F78: =SUM(F79:F82) -> 10 | G78: 104 | H78: 154 | I78: 52 | J78: 36 | K78: 16 | L78: 36 | M78: 108 | N78: 12 | O78: 12 | P78: 0 | Q78: 0 | R78: 0 | S78: 0 | T78: 0 | U78: 0 | V78: 126 | W78: 156
B79: МДК. 06.01 | C79: Оперативное управление текущей деятельностью подчиненного персонала | D79: Э | E79: 126 | F79: 10 | G79: 104 | H79: 10 | I79: 52 | J79: 36 | K79: 16 | N79: 6 | O79: 6 | V79: 126
B80: УП.06 | C80: Учебная практика | D80: -, ДЗ | E80: 36 | H80: 36 | L80: 36 | W80: 36
B81: ПП.06 | C81: Производственная практика | D81: -, ДЗ | E81: 108 | H81: 108 | M81: 108 | W81: 108
C82: Экзамен по мудулю | D82: -,Э | E82: 12 | N82: 6 | O82: 6 | W82: 12
B83: ПМ.07 | C83: Выполнение работ по одной или нескольким профессиям рабочих, должностям служащих (повар,кондитер) | D83: 0;3;3 | E83: =SUM(E84:E89) -> 580 | F83: =SUM(F84:F89) -> 20 | G83: 128 | H83: 266 | I83: 98 | J83: 30 | K83: 0 | L83: 108 | M83: 288 | N83: 18 | O83: 18 | P83: 0 | Q83: 0 | R83: 120 | S83: 316 | T83: 0 | U83: 0 | V83: 0 | W83: 144
B84: МДК.07.01 | C84: Технологические процессы приготовления кулинарной продукции массового спроса и её отпуск | D84: -,Э | E84: 90 | F84: 10 | G84: 68 | H84: 8 | I84: 52 | J84: 16 | N84: 6 | O84: 6 | R84: 44 | S84: 46
B85: МДК.07.02 | C85: Технологические процессы приготовления простых хлебобулочных, мучных кондитерских изделий | D85: -,Э | E85: 82 | F85: 10 | G85: 60 | H85: 6 | I85: 46 | J85: 14 | N85: 6 | O85: 6 | R85: 40 | S85: 42
B86: УП.07 | C86: Учебная практика | D86: -, ДЗ | E86: 108 | G86: 0 | H86: 108 | L86: 108 | R86: 36 | S86: 72
B87: ПП.07 | C87: Производственная практика | D87: -, ДЗ | E87: 144 | G87: 0 | H87: 144 | M87: 144 | S87: 144
C88: Экзамен по мудулю | D88: -,Э | E88: 12 | N88: 6 | O88: 6 | S88: 12
B89: ПДП.00 | C89: Производственная практика (преддипломная) | D89: -, ДЗ | E89: 144 | M89: 144 | W89: 144
B90: ГИА.00 | C90: Государственная итоговая аттестация | D90: Э | E90: 216 | G90: 216 | I90: 72 | J90: 144 | W90: 216
B91: ГИА.01 | C91: Подготовка выпускной квалификационной работы (с 18.05 по 14.06) | E91: 144 | W91: 144
B92: ГИА.02 | C92: Защита выпускной квалификационной работы (с 15.06 по 28.06) | E92: 72 | W92: 72
C93: В С Е Г О | D93: 3;34;27 | E93: =E7+E26+E32+E35+E47+E90 -> 5940 | F93: =F7+F26+F32+F35+F47+F90 -> 216 | G93: =G7+G26+G32+G35+G47+G90 -> 3960 | H93: 1490 | I93: =I7+I26+I32+I35+I47+I90 -> 2444 | J93: 1484 | K93: 32 | L93: 540 | M93: 900 | N93: 162 | O93: 162 | P93: 612 | Q93: 864 | R93: 612 | S93: 864 | T93: 612 | U93: 864 | V93: 612 | W93: 900
L94: Дисциплин и МДК | P94: =P7+P26+P32+P35+P49+P50+P55+P56+P61+P62+P67+P68+P73+P74+P79+P84+P85 -> 612 | Q94: 864 | R94: 540 | S94: 516 | T94: 504 | U94: 516 | V94: 504 | W94: 144
L95: Учебной практики | P95: =P51+P57+P63+P69+P75+P80+P86 -> 0 | Q95: =Q51+Q57+Q63+Q69+Q75+Q80+Q86 -> 0 | R95: 72 | S95: 108 | T95: 108 | U95: 72 | V95: 108 | W95: 72
L96: Производственной практики | P96: =P52+P58+P64+P70+P76+P81+P89 -> 0 | Q96: =Q52+Q58+Q64+Q70+Q76+Q81+Q89 -> 0 | R96: 0 | S96: 216 | T96: 0 | U96: 252 | V96: 0 | W96: 432
L97: Экзаменов | P97: 1 | Q97: 5 | R97: 1 | S97: 5 | T97: 2 | U97: 5 | V97: 2 | W97: 6
L98: Диф зачетов | P98: 0 | Q98: 6 | R98: 2 | S98: 7 | T98: 3 | U98: 7 | V98: 3 | W98: 6
L99: Зачетов | Q99: 1 | S99: 1 | W99: 1

Sheet Лист1
